[Event "Titled Tuesday Blitz August 15 Early 2023"]
[White "Eidelman, Gabriel"]
[Black "Pershina, Elena"]
[WhiteFideId "30910544"]
[BlackFideId "24147516"]
[WhiteElo "2479"]
[BlackElo "2344"]
[Result "0-1"]
[Round "6"]
[TimeControl "180+1"]
[Date "2023.08.15"]
[WhiteClock "0:00:12"]
[BlackClock "0:00:14"]
[Board "137"]

1. e4 {[%clk 0:02:57]}  c5 {[%clk 0:03:00]} 2. Nf3 {[%clk 0:02:52]}  Nc6 {[%clk 0:03:00]} 3. Bc4 {[%clk 0:02:53]}  e6 {[%clk 0:02:36]} 4. O-O {[%clk 0:02:53]}  a6 {[%clk 0:02:29]} 5. d4 {[%clk 0:02:53]}  b5 {[%clk 0:02:27]} 6. d5 {[%clk 0:02:45]}  Na5 {[%clk 0:02:13]} 7. Be2 {[%clk 0:02:43]}  Nf6 {[%clk 0:02:10]} 8. Nbd2 {[%clk 0:02:27]}  exd5 {[%clk 0:02:06]} 9. exd5 {[%clk 0:02:27]}  Bd6 {[%clk 0:02:02]} 10. Nb3 {[%clk 0:02:20]}  Nxb3 {[%clk 0:01:56]} 11. axb3 {[%clk 0:02:21]}  Bb7 {[%clk 0:01:56]} 12. c4 {[%clk 0:02:21]}  O-O {[%clk 0:01:52]} 13. Bg5 {[%clk 0:02:20]}  h6 {[%clk 0:01:49]} 14. Bh4 {[%clk 0:02:19]}  Re8 {[%clk 0:01:46]} 15. Bd3 {[%clk 0:02:15]}  Be7 {[%clk 0:01:27]} 16. Re1 {[%clk 0:02:09]}  d6 {[%clk 0:01:20]} 17. Bg3 {[%clk 0:02:05]}  bxc4 {[%clk 0:01:14]} 18. bxc4 {[%clk 0:02:05]}  Qb6 {[%clk 0:01:14]} 19. Nh4 {[%clk 0:01:57]}  Bf8 {[%clk 0:01:05]} 20. Nf5 {[%clk 0:01:53]}  g6 {[%clk 0:01:00]} 21. Bh4 {[%clk 0:01:50]}  Nh5 {[%clk 0:00:55]} 22. Rxe8 {[%clk 0:01:25]}  Rxe8 {[%clk 0:00:54]} 23. Ne3 {[%clk 0:01:25]}  Nf4 {[%clk 0:00:53]} 24. Bf1 {[%clk 0:01:26]}  Bc8 {[%clk 0:00:48]} 25. Qc2 {[%clk 0:01:23]}  Bg7 {[%clk 0:00:48]} 26. Ra2 {[%clk 0:01:20]}  Kh7 {[%clk 0:00:39]} 27. b3 {[%clk 0:01:12]}  Qb4 {[%clk 0:00:36]} 28. g3 {[%clk 0:00:40]}  Nh5 {[%clk 0:00:26]} 29. Be2 {[%clk 0:00:41]}  Qe1+ {[%clk 0:00:24]} 30. Kg2 {[%clk 0:00:40]}  Nf6 {[%clk 0:00:19]} 31. Qd2 {[%clk 0:00:39]}  Qxd2 {[%clk 0:00:18]} 32. Rxd2 {[%clk 0:00:38]}  g5 {[%clk 0:00:19]} 33. Bd3+ {[%clk 0:00:38]}  Kg8 {[%clk 0:00:19]} 34. Nf5 {[%clk 0:00:38]}  Bxf5 {[%clk 0:00:18]} 35. Bxf5 {[%clk 0:00:39]}  gxh4 {[%clk 0:00:18]} 36. Ra2 {[%clk 0:00:39]}  hxg3 {[%clk 0:00:17]} 37. Rxa6 {[%clk 0:00:38]}  gxh2 {[%clk 0:00:17]} 38. Rxd6 {[%clk 0:00:38]}  Ne4 {[%clk 0:00:16]} 39. Bxe4 {[%clk 0:00:38]}  Rxe4 {[%clk 0:00:17]} 40. Rd8+ {[%clk 0:00:38]}  Bf8 {[%clk 0:00:17]} 41. Kxh2 {[%clk 0:00:38]}  Rd4 {[%clk 0:00:17]} 42. b4 {[%clk 0:00:30]}  cxb4 {[%clk 0:00:17]} 43. c5 {[%clk 0:00:30]}  b3 {[%clk 0:00:16]} 44. c6 {[%clk 0:00:29]}  b2 {[%clk 0:00:14]} 45. c7 {[%clk 0:00:21]}  Rc4 {[%clk 0:00:14]} 46. c8=Q {[%clk 0:00:21]}  Rxc8 {[%clk 0:00:14]} 47. Rxc8 {[%clk 0:00:12]}  b1=Q {[%clk 0:00:14]} 48. Rc4 {[%clk 0:00:12]}  Qd3 {[%clk 0:00:14]} 49. Rg4+ {[%clk 0:00:12]}  Kh7 {[%clk 0:00:14]} 50. f4 {[%clk 0:00:12]}  Qxd5 {[%clk 0:00:14]} 0-1


[Site "https://www.chess.com"]

[Event "Titled Tuesday Blitz August 15 Early 2023"]
[White "Nguyen Hong Nhung"]
[Black "Osinovsky, Stepan"]
[WhiteFideId "12412201"]
[BlackFideId "4157354"]
[WhiteElo "2477"]
[BlackElo "2343"]
[Result "1-0"]
[Round "6"]
[TimeControl "180+1"]
[Date "2023.08.15"]
[WhiteClock "0:00:22"]
[BlackClock "0:00:00"]
[Board "139"]

1. e4 {[%clk 0:03:00]}  e6 {[%clk 0:01:30]} 2. d4 {[%clk 0:02:59]}  d5 {[%clk 0:01:29]} 3. Nc3 {[%clk 0:02:55]}  Ne7 {[%clk 0:01:28]} 4. Nf3 {[%clk 0:02:44]}  Nbc6 {[%clk 0:01:28]} 5. Bb5 {[%clk 0:02:39]}  a6 {[%clk 0:01:18]} 6. Be2 {[%clk 0:02:36]}  b6 {[%clk 0:01:11]} 7. O-O {[%clk 0:02:35]}  Bb7 {[%clk 0:01:09]} 8. exd5 {[%clk 0:02:30]}  exd5 {[%clk 0:01:06]} 9. Bf4 {[%clk 0:02:17]}  f6 {[%clk 0:00:57]} 10. Re1 {[%clk 0:02:10]}  Qd7 {[%clk 0:00:57]} 11. a3 {[%clk 0:01:51]}  Kf7 {[%clk 0:00:47]} 12. Qd3 {[%clk 0:01:44]}  Re8 {[%clk 0:00:46]} 13. b4 {[%clk 0:01:36]}  Nd8 {[%clk 0:00:38]} 14. b5 {[%clk 0:01:29]}  a5 {[%clk 0:00:34]} 15. Rac1 {[%clk 0:01:18]}  Ne6 {[%clk 0:00:33]} 16. Bg3 {[%clk 0:01:17]}  h5 {[%clk 0:00:32]} 17. Nh4 {[%clk 0:01:16]}  g6 {[%clk 0:00:17]} 18. f4 {[%clk 0:01:12]}  Ng7 {[%clk 0:00:12]} 19. Nd1 {[%clk 0:00:51]}  Ngf5 {[%clk 0:00:12]} 20. c4 {[%clk 0:00:41]}  Nxd4 {[%clk 0:00:08]} 21. Qxd4 {[%clk 0:00:38]}  Nf5 {[%clk 0:00:08]} 22. Qd3 {[%clk 0:00:31]}  Bc5+ {[%clk 0:00:08]} 23. Kh1 {[%clk 0:00:28]}  Re4 {[%clk 0:00:03]} 24. Nxf5 {[%clk 0:00:27]}  Qxf5 {[%clk 0:00:00]} 25. Nf2 {[%clk 0:00:22]} 1-0


[Site "https://www.chess.com"]

[Event "Titled Tuesday Blitz August 15 Early 2023"]
[White "Bochnicka, Vladimir"]
[Black "UgarteCesar"]
[WhiteFideId "14943450"]
[WhiteElo "2474"]
[BlackElo "2338"]
[Result "1-0"]
[Round "6"]
[TimeControl "180+1"]
[Date "2023.08.15"]
[WhiteClock "0:01:17"]
[BlackClock "0:01:27"]
[Board "140"]

1. e4 {[%clk 0:02:46]}  c5 {[%clk 0:02:59]} 2. Nf3 {[%clk 0:02:45]}  Nc6 {[%clk 0:02:59]} 3. Bb5 {[%clk 0:02:44]}  g6 {[%clk 0:02:58]} 4. O-O {[%clk 0:02:43]}  Bg7 {[%clk 0:02:58]} 5. Re1 {[%clk 0:02:43]}  e6 {[%clk 0:02:59]} 6. Bxc6 {[%clk 0:02:32]}  dxc6 {[%clk 0:02:58]} 7. d3 {[%clk 0:02:29]}  Ne7 {[%clk 0:02:58]} 8. e5 {[%clk 0:02:25]}  O-O {[%clk 0:02:57]} 9. Bg5 {[%clk 0:02:22]}  h6 {[%clk 0:02:54]} 10. Be3 {[%clk 0:02:23]}  b6 {[%clk 0:02:52]} 11. Nbd2 {[%clk 0:02:23]}  Nf5 {[%clk 0:02:52]} 12. Ne4 {[%clk 0:02:19]}  Qc7 {[%clk 0:02:46]} 13. Bf4 {[%clk 0:02:03]}  Ba6 {[%clk 0:02:41]} 14. Qd2 {[%clk 0:02:02]}  Rad8 {[%clk 0:02:33]} 15. Nf6+ {[%clk 0:01:46]}  Kh8 {[%clk 0:02:21]} 16. g4 {[%clk 0:01:45]}  Nd4 {[%clk 0:02:20]} 17. Nxd4 {[%clk 0:01:45]}  Rxd4 {[%clk 0:02:17]} 18. Bxh6 {[%clk 0:01:34]}  Bxf6 {[%clk 0:02:17]} 19. exf6 {[%clk 0:01:27]}  Rxg4+ {[%clk 0:02:16]} 20. Kh1 {[%clk 0:01:25]}  Qd6 {[%clk 0:02:03]} 21. Bg7+ {[%clk 0:01:19]}  Kg8 {[%clk 0:02:02]} 22. Qh6 {[%clk 0:01:20]}  Qd5+ {[%clk 0:02:02]} 23. Re4 {[%clk 0:01:17]}  Qh5 {[%clk 0:01:27]} 24. Rxg4 {[%clk 0:01:17]} 1-0


[Site "https://www.chess.com"]

[Event "Titled Tuesday Blitz August 15 Early 2023"]
[White "Karavade, Eesha"]
[Black "Jahnz, Fabian"]
[WhiteFideId "5012600"]
[BlackFideId "4653300"]
[WhiteElo "2454"]
[BlackElo "2336"]
[Result "0-1"]
[Round "6"]
[TimeControl "180+1"]
[Date "2023.08.15"]
[WhiteClock "0:00:12"]
[BlackClock "0:00:11"]
[Board "143"]

1. d4 {[%clk 0:02:56]}  d5 {[%clk 0:02:59]} 2. Nf3 {[%clk 0:02:55]}  c6 {[%clk 0:02:58]} 3. Bf4 {[%clk 0:02:55]}  e6 {[%clk 0:02:59]} 4. e3 {[%clk 0:02:51]}  Be7 {[%clk 0:02:57]} 5. Bd3 {[%clk 0:02:49]}  f5 {[%clk 0:02:57]} 6. c4 {[%clk 0:02:45]}  Nf6 {[%clk 0:02:57]} 7. Qc2 {[%clk 0:02:41]}  Ne4 {[%clk 0:02:56]} 8. Nbd2 {[%clk 0:02:40]}  O-O {[%clk 0:02:55]} 9. h3 {[%clk 0:02:28]}  Nd7 {[%clk 0:02:50]} 10. g4 {[%clk 0:02:26]}  c5 {[%clk 0:02:36]} 11. gxf5 {[%clk 0:02:15]}  exf5 {[%clk 0:02:30]} 12. cxd5 {[%clk 0:02:14]}  cxd4 {[%clk 0:02:27]} 13. Nxe4 {[%clk 0:02:10]}  fxe4 {[%clk 0:02:25]} 14. Bxe4 {[%clk 0:02:09]}  Nf6 {[%clk 0:02:26]} 15. Nxd4 {[%clk 0:02:06]}  Bb4+ {[%clk 0:02:22]} 16. Kf1 {[%clk 0:01:56]}  Nxe4 {[%clk 0:01:54]} 17. Qxe4 {[%clk 0:01:55]}  Re8 {[%clk 0:01:48]} 18. Ne6 {[%clk 0:01:46]}  Bxe6 {[%clk 0:01:47]} 19. dxe6 {[%clk 0:01:45]}  Qa5 {[%clk 0:01:34]} 20. Kg2 {[%clk 0:01:42]}  Bf8 {[%clk 0:01:13]} 21. Rhd1 {[%clk 0:01:40]}  Qb6 {[%clk 0:01:08]} 22. Rd7 {[%clk 0:01:29]}  Qxb2 {[%clk 0:00:55]} 23. Rb1 {[%clk 0:01:21]}  Qxa2 {[%clk 0:00:54]} 24. Rbxb7 {[%clk 0:01:20]}  Qxe6 {[%clk 0:00:50]} 25. Qxe6+ {[%clk 0:01:16]}  Rxe6 {[%clk 0:00:50]} 26. Rxa7 {[%clk 0:01:17]}  Rxa7 {[%clk 0:00:49]} 27. Rxa7 {[%clk 0:01:16]}  Be7 {[%clk 0:00:41]} 28. Bg3 {[%clk 0:01:11]}  Bf6 {[%clk 0:00:34]} 29. Kf3 {[%clk 0:01:09]}  Rb6 {[%clk 0:00:33]} 30. Ke4 {[%clk 0:01:06]}  Rb2 {[%clk 0:00:33]} 31. Rc7 {[%clk 0:00:54]}  h5 {[%clk 0:00:29]} 32. h4 {[%clk 0:00:48]}  Rb4+ {[%clk 0:00:27]} 33. Kf5 {[%clk 0:00:48]}  Bxh4 {[%clk 0:00:24]} 34. Be5 {[%clk 0:00:42]}  Rg4 {[%clk 0:00:17]} 35. f3 {[%clk 0:00:39]}  Rg1 {[%clk 0:00:17]} 36. Ke6 {[%clk 0:00:26]}  Bf2 {[%clk 0:00:17]} 37. Bd4 {[%clk 0:00:24]}  h4 {[%clk 0:00:15]} 38. Rc2 {[%clk 0:00:23]}  Rg2 {[%clk 0:00:14]} 39. Kf5 {[%clk 0:00:18]}  h3 {[%clk 0:00:13]} 40. Be5 {[%clk 0:00:17]}  h2 {[%clk 0:00:12]} 41. Bxh2 {[%clk 0:00:16]}  Rxh2 {[%clk 0:00:13]} 42. e4 {[%clk 0:00:16]}  Bg3 {[%clk 0:00:11]} 43. Rxh2 {[%clk 0:00:16]}  Bxh2 {[%clk 0:00:12]} 44. Kg6 {[%clk 0:00:16]}  Bf4 {[%clk 0:00:12]} 45. Kf5 {[%clk 0:00:16]}  Bc1 {[%clk 0:00:12]} 46. e5 {[%clk 0:00:15]}  Kf7 {[%clk 0:00:12]} 47. f4 {[%clk 0:00:13]}  Bd2 {[%clk 0:00:11]} 48. Ke4 {[%clk 0:00:13]}  Ke6 {[%clk 0:00:11]} 49. f5+ {[%clk 0:00:14]}  Kf7 {[%clk 0:00:11]} 50. Kf3 {[%clk 0:00:14]}  Bc3 {[%clk 0:00:11]} 51. Kf4 {[%clk 0:00:14]}  Bb2 {[%clk 0:00:11]} 52. f6 {[%clk 0:00:14]}  g6 {[%clk 0:00:11]} 53. Kg5 {[%clk 0:00:14]}  Bxe5 {[%clk 0:00:10]} 54. Kg4 {[%clk 0:00:12]}  Bxf6 {[%clk 0:00:11]} 0-1


[Site "https://www.chess.com"]

[Event "Titled Tuesday Blitz August 15 Early 2023"]
[White "Mrudul Dehankar"]
[Black "Skaric, Djuro"]
[WhiteFideId "25096990"]
[BlackFideId "934569"]
[WhiteElo "2448"]
[BlackElo "2331"]
[Result "0-1"]
[Round "6"]
[TimeControl "180+1"]
[Date "2023.08.15"]
[WhiteClock "0:00:00"]
[BlackClock "0:00:36"]
[Board "146"]

1. e4 {[%clk 0:03:00]}  d6 {[%clk 0:02:52]} 2. d4 {[%clk 0:02:59]}  g6 {[%clk 0:02:51]} 3. Nc3 {[%clk 0:02:52]}  Bg7 {[%clk 0:02:49]} 4. Nf3 {[%clk 0:02:52]}  Nf6 {[%clk 0:02:48]} 5. Bf4 {[%clk 0:02:45]}  O-O {[%clk 0:02:47]} 6. Qd2 {[%clk 0:02:44]}  Nc6 {[%clk 0:02:45]} 7. O-O-O {[%clk 0:02:43]}  a6 {[%clk 0:02:45]} 8. h4 {[%clk 0:02:34]}  h5 {[%clk 0:02:44]} 9. d5 {[%clk 0:02:26]}  Nb8 {[%clk 0:02:39]} 10. Bh6 {[%clk 0:02:22]}  Kh7 {[%clk 0:02:38]} 11. Ng5+ {[%clk 0:02:08]}  Kg8 {[%clk 0:02:38]} 12. Bxg7 {[%clk 0:02:08]}  Kxg7 {[%clk 0:02:39]} 13. f3 {[%clk 0:02:09]}  Rh8 {[%clk 0:02:39]} 14. Qe3 {[%clk 0:01:54]}  Nbd7 {[%clk 0:02:36]} 15. Be2 {[%clk 0:01:53]}  Ne5 {[%clk 0:02:33]} 16. g4 {[%clk 0:01:40]}  hxg4 {[%clk 0:02:30]} 17. f4 {[%clk 0:01:41]}  Nf3 {[%clk 0:02:25]} 18. e5 {[%clk 0:01:39]}  dxe5 {[%clk 0:02:20]} 19. fxe5 {[%clk 0:01:38]}  Nh5 {[%clk 0:02:19]} 20. Bxf3 {[%clk 0:01:10]}  gxf3 {[%clk 0:02:19]} 21. Qxf3 {[%clk 0:01:11]}  Bf5 {[%clk 0:02:18]} 22. Rhg1 {[%clk 0:01:07]}  Qc8 {[%clk 0:01:31]} 23. Rdf1 {[%clk 0:01:01]}  Kf8 {[%clk 0:01:23]} 24. e6 {[%clk 0:00:50]}  f6 {[%clk 0:01:18]} 25. Nf7 {[%clk 0:00:47]}  Rh7 {[%clk 0:01:18]} 26. Qg2 {[%clk 0:00:34]}  Rg7 {[%clk 0:01:12]} 27. Nh6 {[%clk 0:00:33]}  Bxe6 {[%clk 0:01:10]} 28. dxe6 {[%clk 0:00:30]}  Qxe6 {[%clk 0:01:10]} 29. Re1 {[%clk 0:00:28]}  Qc6 {[%clk 0:01:00]} 30. Qd2 {[%clk 0:00:17]}  Qd6 {[%clk 0:00:56]} 31. Ne4 {[%clk 0:00:08]}  Qxd2+ {[%clk 0:00:55]} 32. Nxd2 {[%clk 0:00:08]}  Rd8 {[%clk 0:00:54]} 33. Ng4 {[%clk 0:00:07]}  e5 {[%clk 0:00:52]} 34. Rgf1 {[%clk 0:00:06]}  Rf7 {[%clk 0:00:50]} 35. Nf3 {[%clk 0:00:04]}  Re8 {[%clk 0:00:48]} 36. Nf2 {[%clk 0:00:04]}  Kg7 {[%clk 0:00:48]} 37. Ne4 {[%clk 0:00:04]}  Nf4 {[%clk 0:00:48]} 38. Rg1 {[%clk 0:00:05]}  f5 {[%clk 0:00:46]} 39. Neg5 {[%clk 0:00:04]}  Rfe7 {[%clk 0:00:46]} 40. Rd1 {[%clk 0:00:04]}  e4 {[%clk 0:00:46]} 41. Nd4 {[%clk 0:00:03]}  c5 {[%clk 0:00:46]} 42. Nb3 {[%clk 0:00:02]}  Ne2+ {[%clk 0:00:46]} 43. Kb1 {[%clk 0:00:01]}  Nxg1 {[%clk 0:00:46]} 44. Rxg1 {[%clk 0:00:02]}  e3 {[%clk 0:00:46]} 45. Re1 {[%clk 0:00:03]}  e2 {[%clk 0:00:47]} 46. Nxc5 {[%clk 0:00:02]}  Re3 {[%clk 0:00:45]} 47. Nd3 {[%clk 0:00:02]}  Rh3 {[%clk 0:00:43]} 48. Nf4 {[%clk 0:00:02]}  Rxh4 {[%clk 0:00:43]} 49. Nge6+ {[%clk 0:00:03]}  Kf6 {[%clk 0:00:43]} 50. Rxe2 {[%clk 0:00:00]}  Rh1+ {[%clk 0:00:36]} 0-1


[Site "https://www.chess.com"]

[Event "Titled Tuesday Blitz August 15 Early 2023"]
[White "Manukian, Artak"]
[Black "Ouellet, Maili-Jade"]
[WhiteFideId "13301373"]
[BlackFideId "2620472"]
[WhiteElo "2441"]
[BlackElo "2294"]
[Result "0-1"]
[Round "6"]
[TimeControl "180+1"]
[Date "2023.08.15"]
[WhiteClock "0:00:59"]
[BlackClock "0:00:04"]
[Board "149"]

1. e4 {[%clk 0:02:59]}  c6 {[%clk 0:03:00]} 2. d4 {[%clk 0:02:58]}  d5 {[%clk 0:03:00]} 3. e5 {[%clk 0:02:59]}  Bf5 {[%clk 0:02:58]} 4. c4 {[%clk 0:02:59]}  e6 {[%clk 0:02:58]} 5. Nc3 {[%clk 0:03:00]}  dxc4 {[%clk 0:02:57]} 6. Bxc4 {[%clk 0:02:59]}  Nd7 {[%clk 0:02:56]} 7. Nf3 {[%clk 0:02:59]}  Ne7 {[%clk 0:02:37]} 8. Nh4 {[%clk 0:02:58]}  Bg6 {[%clk 0:02:35]} 9. Bg5 {[%clk 0:02:57]}  Qb6 {[%clk 0:02:32]} 10. Qd2 {[%clk 0:02:55]}  Nd5 {[%clk 0:02:23]} 11. O-O {[%clk 0:02:52]}  Be7 {[%clk 0:02:20]} 12. Nxg6 {[%clk 0:02:49]}  hxg6 {[%clk 0:02:06]} 13. Nxd5 {[%clk 0:02:33]}  cxd5 {[%clk 0:02:03]} 14. Bxe7 {[%clk 0:02:33]}  Kxe7 {[%clk 0:02:02]} 15. Bb3 {[%clk 0:02:32]}  Rac8 {[%clk 0:01:58]} 16. Rac1 {[%clk 0:02:28]}  Rc6 {[%clk 0:01:40]} 17. Ba4 {[%clk 0:02:23]}  Rc7 {[%clk 0:01:33]} 18. Rxc7 {[%clk 0:02:21]}  Qxc7 {[%clk 0:01:33]} 19. Qb4+ {[%clk 0:02:21]}  Kd8 {[%clk 0:01:30]} 20. g3 {[%clk 0:02:15]}  Qb6 {[%clk 0:01:28]} 21. Qa3 {[%clk 0:02:09]}  Qc7 {[%clk 0:00:41]} 22. Bxd7 {[%clk 0:02:02]}  Kxd7 {[%clk 0:00:40]} 23. Qxa7 {[%clk 0:02:02]}  Rc8 {[%clk 0:00:40]} 24. Qa4+ {[%clk 0:02:00]}  Qc6 {[%clk 0:00:39]} 25. Qb4 {[%clk 0:01:56]}  Ke8 {[%clk 0:00:33]} 26. b3 {[%clk 0:01:52]}  Rc7 {[%clk 0:00:27]} 27. a4 {[%clk 0:01:51]}  Qc3 {[%clk 0:00:26]} 28. Qb6 {[%clk 0:01:50]}  Qc6 {[%clk 0:00:25]} 29. Qa7 {[%clk 0:01:45]}  Qc3 {[%clk 0:00:21]} 30. Qb8+ {[%clk 0:01:41]}  Ke7 {[%clk 0:00:21]} 31. a5 {[%clk 0:01:31]}  Qxa5 {[%clk 0:00:19]} 32. Qg8 {[%clk 0:01:30]}  Qb6 {[%clk 0:00:17]} 33. Qxg7 {[%clk 0:01:30]}  Qxd4 {[%clk 0:00:17]} 34. Qf6+ {[%clk 0:01:30]}  Ke8 {[%clk 0:00:16]} 35. Qh8+ {[%clk 0:01:28]}  Ke7 {[%clk 0:00:16]} 36. Qf6+ {[%clk 0:01:27]}  Ke8 {[%clk 0:00:16]} 37. h4 {[%clk 0:01:24]}  Rc2 {[%clk 0:00:16]} 38. h5 {[%clk 0:01:21]}  gxh5 {[%clk 0:00:15]} 39. Qh8+ {[%clk 0:01:21]}  Ke7 {[%clk 0:00:15]} 40. Qxh5 {[%clk 0:01:22]}  Qb2 {[%clk 0:00:12]} 41. Qg5+ {[%clk 0:01:20]}  Ke8 {[%clk 0:00:12]} 42. Qf6 {[%clk 0:01:18]}  d4 {[%clk 0:00:10]} 43. Kg2 {[%clk 0:01:17]}  Qxb3 {[%clk 0:00:07]} 44. Rh1 {[%clk 0:01:17]}  Qd5+ {[%clk 0:00:06]} 45. Qf3 {[%clk 0:01:16]}  Qxf3+ {[%clk 0:00:05]} 46. Kxf3 {[%clk 0:01:17]}  d3 {[%clk 0:00:03]} 47. Rd1 {[%clk 0:01:14]}  Re2 {[%clk 0:00:03]} 48. Rxd3 {[%clk 0:01:13]}  Rxe5 {[%clk 0:00:04]} 49. Rb3 {[%clk 0:01:14]}  b5 {[%clk 0:00:04]} 50. Kf4 {[%clk 0:01:14]}  Rd5 {[%clk 0:00:05]} 51. Ke4 {[%clk 0:01:14]}  Ke7 {[%clk 0:00:05]} 52. f4 {[%clk 0:01:14]}  f5+ {[%clk 0:00:05]} 53. Ke3 {[%clk 0:01:14]}  Kd6 {[%clk 0:00:06]} 54. Rc3 {[%clk 0:01:13]}  Rc5 {[%clk 0:00:05]} 55. Rd3+ {[%clk 0:01:13]}  Kc6 {[%clk 0:00:06]} 56. Rd8 {[%clk 0:01:13]}  b4 {[%clk 0:00:06]} 57. Rb8 {[%clk 0:01:11]}  Rb5 {[%clk 0:00:07]} 58. Re8 {[%clk 0:01:10]}  Kd5 {[%clk 0:00:06]} 59. Rd8+ {[%clk 0:01:10]}  Kc4 {[%clk 0:00:06]} 60. Rd1 {[%clk 0:01:11]}  b3 {[%clk 0:00:06]} 61. Rc1+ {[%clk 0:01:11]}  Kb4 {[%clk 0:00:05]} 62. Kd4 {[%clk 0:01:10]}  Rd5+ {[%clk 0:00:05]} 63. Ke3 {[%clk 0:01:10]}  b2 {[%clk 0:00:06]} 64. Re1 {[%clk 0:01:06]}  Kb3 {[%clk 0:00:06]} 65. Kf3 {[%clk 0:01:04]}  Ka2 {[%clk 0:00:06]} 66. Rxe6 {[%clk 0:01:02]}  b1=Q {[%clk 0:00:05]} 67. Ra6+ {[%clk 0:01:03]}  Kb2 {[%clk 0:00:05]} 68. Rb6+ {[%clk 0:01:03]}  Kc2 {[%clk 0:00:06]} 69. Rxb1 {[%clk 0:01:04]}  Kxb1 {[%clk 0:00:06]} 70. g4 {[%clk 0:01:05]}  fxg4+ {[%clk 0:00:05]} 71. Kxg4 {[%clk 0:01:05]}  Kc2 {[%clk 0:00:05]} 72. f5 {[%clk 0:01:05]}  Kd3 {[%clk 0:00:05]} 73. f6 {[%clk 0:01:06]}  Ke4 {[%clk 0:00:03]} 74. f7 {[%clk 0:00:59]}  Rf5 {[%clk 0:00:04]} 0-1


[Site "https://www.chess.com"]

[Event "Titled Tuesday Blitz August 15 Early 2023"]
[White "Clawitter, Craig"]
[Black "Herman, Daniel"]
[WhiteFideId "2023105"]
[BlackFideId "30935008"]
[WhiteElo "2252"]
[BlackElo "2433"]
[Result "0-1"]
[Round "6"]
[TimeControl "180+1"]
[Date "2023.08.15"]
[WhiteClock "0:00:09"]
[BlackClock "0:00:14"]
[Board "151"]

1. e4 {[%clk 0:02:58]}  e6 {[%clk 0:03:00]} 2. d4 {[%clk 0:02:57]}  d5 {[%clk 0:03:00]} 3. e5 {[%clk 0:02:58]}  c5 {[%clk 0:03:00]} 4. c3 {[%clk 0:02:59]}  Nc6 {[%clk 0:03:00]} 5. Nf3 {[%clk 0:02:59]}  Bd7 {[%clk 0:03:00]} 6. Be2 {[%clk 0:02:58]}  Rc8 {[%clk 0:03:00]} 7. O-O {[%clk 0:02:57]}  Nh6 {[%clk 0:02:53]} 8. dxc5 {[%clk 0:02:40]}  Bxc5 {[%clk 0:02:52]} 9. b4 {[%clk 0:02:36]}  Bb6 {[%clk 0:02:48]} 10. Bd3 {[%clk 0:02:24]}  Ng4 {[%clk 0:02:15]} 11. Bf4 {[%clk 0:02:22]}  Bc7 {[%clk 0:02:09]} 12. Re1 {[%clk 0:02:13]}  f6 {[%clk 0:01:49]} 13. h3 {[%clk 0:02:00]}  Ngxe5 {[%clk 0:01:48]} 14. Nxe5 {[%clk 0:01:58]}  Nxe5 {[%clk 0:01:48]} 15. Bxe5 {[%clk 0:01:47]}  Bxe5 {[%clk 0:01:48]} 16. Qh5+ {[%clk 0:01:45]}  Ke7 {[%clk 0:01:44]} 17. Rxe5 {[%clk 0:01:02]}  fxe5 {[%clk 0:01:43]} 18. Qxe5 {[%clk 0:01:01]}  Qf8 {[%clk 0:01:40]} 19. Nd2 {[%clk 0:00:40]}  Qf6 {[%clk 0:01:39]} 20. Qe3 {[%clk 0:00:28]}  Rxc3 {[%clk 0:01:33]} 21. Re1 {[%clk 0:00:19]}  Rf8 {[%clk 0:01:27]} 22. Nf3 {[%clk 0:00:17]}  Qf4 {[%clk 0:00:59]} 23. Qxa7 {[%clk 0:00:15]}  Rxd3 {[%clk 0:00:58]} 24. Qxb7 {[%clk 0:00:16]}  Rxf3 {[%clk 0:00:16]} 25. gxf3 {[%clk 0:00:16]}  Qxf3 {[%clk 0:00:17]} 26. Qb6 {[%clk 0:00:16]}  Rf6 {[%clk 0:00:14]} 27. Qc5+ {[%clk 0:00:16]}  Kf7 {[%clk 0:00:15]} 28. Rc1 {[%clk 0:00:13]}  Rg6+ {[%clk 0:00:14]} 29. Kf1 {[%clk 0:00:13]}  Qxh3+ {[%clk 0:00:15]} 30. Ke1 {[%clk 0:00:13]}  Rg1+ {[%clk 0:00:14]} 31. Kd2 {[%clk 0:00:12]}  Qh6+ {[%clk 0:00:14]} 32. Ke2 {[%clk 0:00:11]}  Qxc1 {[%clk 0:00:14]} 33. Qe3 {[%clk 0:00:09]}  Re1+ {[%clk 0:00:14]} 0-1


[Site "https://www.chess.com"]

[Event "Titled Tuesday Blitz August 15 Early 2023"]
[White "Yeritsyan, Hayk"]
[Black "Sarkar, Justin"]
[WhiteFideId "13307320"]
[BlackFideId "2010011"]
[WhiteElo "2428"]
[BlackElo "2249"]
[Result "1-0"]
[Round "6"]
[TimeControl "180+1"]
[Date "2023.08.15"]
[WhiteClock "0:00:15"]
[BlackClock "0:00:00"]
[Board "152"]

1. d4 {[%clk 0:02:55]}  Nf6 {[%clk 0:02:47]} 2. Nf3 {[%clk 0:02:42]}  e6 {[%clk 0:02:44]} 3. e3 {[%clk 0:02:42]}  c5 {[%clk 0:02:32]} 4. Bd3 {[%clk 0:02:40]}  b6 {[%clk 0:02:27]} 5. c3 {[%clk 0:02:40]}  Ba6 {[%clk 0:02:18]} 6. Bxa6 {[%clk 0:02:30]}  Nxa6 {[%clk 0:02:18]} 7. Nbd2 {[%clk 0:02:31]}  Nc7 {[%clk 0:02:09]} 8. O-O {[%clk 0:02:30]}  d5 {[%clk 0:02:01]} 9. Re1 {[%clk 0:02:25]}  Bd6 {[%clk 0:01:54]} 10. e4 {[%clk 0:02:24]}  dxe4 {[%clk 0:01:38]} 11. Nxe4 {[%clk 0:02:23]}  Nxe4 {[%clk 0:01:38]} 12. Rxe4 {[%clk 0:02:22]}  O-O {[%clk 0:01:35]} 13. Qe2 {[%clk 0:02:11]}  h6 {[%clk 0:01:28]} 14. Bf4 {[%clk 0:02:04]}  f5 {[%clk 0:01:10]} 15. Bxd6 {[%clk 0:01:42]}  fxe4 {[%clk 0:01:10]} 16. Bxc7 {[%clk 0:01:41]}  Qxc7 {[%clk 0:01:01]} 17. Qxe4 {[%clk 0:01:40]}  Rae8 {[%clk 0:00:53]} 18. Re1 {[%clk 0:01:38]}  cxd4 {[%clk 0:00:50]} 19. Nxd4 {[%clk 0:01:33]}  e5 {[%clk 0:00:47]} 20. Qd5+ {[%clk 0:01:31]}  Qf7 {[%clk 0:00:45]} 21. Qxf7+ {[%clk 0:01:24]}  Rxf7 {[%clk 0:00:39]} 22. f3 {[%clk 0:01:22]}  Rf6 {[%clk 0:00:30]} 23. Nb3 {[%clk 0:01:15]}  Kf7 {[%clk 0:00:27]} 24. Nd2 {[%clk 0:01:14]}  Rd6 {[%clk 0:00:23]} 25. Ne4 {[%clk 0:01:13]}  Rd5 {[%clk 0:00:19]} 26. Kf2 {[%clk 0:01:12]}  Red8 {[%clk 0:00:17]} 27. Ke2 {[%clk 0:01:12]}  b5 {[%clk 0:00:17]} 28. Rc1 {[%clk 0:01:11]}  a6 {[%clk 0:00:13]} 29. c4 {[%clk 0:01:09]}  Rc8 {[%clk 0:00:09]} 30. c5 {[%clk 0:00:46]}  b4 {[%clk 0:00:08]} 31. Rc4 {[%clk 0:00:41]}  a5 {[%clk 0:00:04]} 32. b3 {[%clk 0:00:41]}  Rc6 {[%clk 0:00:03]} 33. h4 {[%clk 0:00:37]}  Ke6 {[%clk 0:00:02]} 34. g4 {[%clk 0:00:37]}  Rd4 {[%clk 0:00:02]} 35. Rc2 {[%clk 0:00:34]}  Kd5 {[%clk 0:00:01]} 36. h5 {[%clk 0:00:28]}  Ke6 {[%clk 0:00:01]} 37. Ke3 {[%clk 0:00:27]}  Kd5 {[%clk 0:00:01]} 38. Rc1 {[%clk 0:00:22]}  Ke6 {[%clk 0:00:00]} 39. f4 {[%clk 0:00:15]} 1-0


[Site "https://www.chess.com"]